[Event "Cracovia Festival-A 2023"]
[Site "Krakow"]
[Date "2024.01.03"]
[Round "8.28"]
[White "Hnatyshyn, Anastasiia"]
[Black "Fodor, Balazs"]
[Result "0-1"]
[ECO "B28"]
[WhiteElo "2152"]
[BlackElo "2225"]
[Annotator "RC"]
[PlyCount "84"]
[EventDate "2023.12.24"]
[EventType "swiss"]
[EventCountry "POL"]
[SourceTitle "playchess.com"]
[Source "ChessBase"]
[SourceQuality "1"]
[TimeControl "40/5400+30:1800+30"]

1. e4 {[%emt 0:00:03]} c5 {[%emt 0:06:03]} 2. Nf3 {[%emt 0:00:07]} a6 {[%emt 0:00:12]} 3. c4 {[%emt 0:00:08]} Nc6 {[%emt 0:00:07]} 4. d4 {[%emt 0:00:58]} cxd4 {[%emt 0:00:07]} 5. Nxd4 {[%emt 0:00:04]} e5 {[%emt 0:00:07]} 6. Nc2 {[%emt 0:02:52]} Nf6 {[%emt 0:00:08]} 7. Nc3 {[%emt 0:00:14]} Bc5 {[%emt 0:00:09]} 8. Be2 {[%emt 0:02:36]} d6 {[%emt 0:00:09]} 9. O-O {[%emt 0:00:26]} O-O {[%emt 0:00:16]} 10. Kh1 {[%emt 0:04:11]} Nd4 {[%emt 0:04:42]} 11. Be3 {[%emt 0:06:57]} Nxe2 {[%emt 0:03:01]} 12. Qxe2 {[%emt 0:00:31]} Bxe3 {[%emt 0:05:57]} 13. Nxe3 {[%emt 0:00:33]} Be6 {[%emt 0:05:17]} 14. Rfd1 {[%emt 0:04:54]} Rc8 {[%emt 0:01:08]} 15. Rac1 {[%emt 0:05:20]} Rc6 {[%emt 0:17:00]} 16. b4 {[%emt 0:09:51]} Qb6 {[%emt 0:08:49]} 17. a3 {[%emt 0:03:02]} Rfc8 {[%emt 0:00:08]} 18. Na4 {[%emt 0:06:15]} Qd8 {[%emt 0:08:43]} 19. Nc5 {[%emt 0:07:17]} Qe7 {[%emt 0:03:03]} 20. Nd5 {[%emt 0:00:52]} Bxd5 {[%emt 0:00:08]} 21. exd5 {[%emt 0:00:07]} Rxc5 {[%emt 0:05:24]} 22. bxc5 {[%emt 0:00:06]} Rxc5 {[%emt 0:00:07]} 23. Rb1 {[%emt 0:02:06]} g6 {[%emt 0:01:14]} 24. g3 {[%emt 0:04:08]} Rc7 {[%emt 0:03:56]} 25. Kg2 {[%emt 0:07:48]} Nd7 {[%emt 0:00:30]} 26. h4 {[%emt 0:00:19]} h5 {[%emt 0:01:23]} 27. Rh1 {[%emt 0:01:44]} f5 {[%emt 0:03:34]} 28. Qe3 {[%emt 0:03:59]} e4 {[%emt 0:01:30]} 29. Rhc1 {[%emt 0:05:01]} Nc5 {[%emt 0:01:00]} 30. Rc3 {[%emt 0:08:42]} Qe5 {[%emt 0:02:01]} 31. Qg5 {[%emt 0:01:03]} Kh7 {[%emt 0:02:50]} 32. Re3 {[%emt 0:01:38]} Rd7 {[%emt 0:02:17]} 33. Rd1 {[%emt 0:05:48]} Qb2 {[%emt 0:01:25]} 34. g4 {[%emt 0:04:32]} fxg4 {[%emt 0:00:11]} 35. Qf4 {[%emt 0:00:24]} Kg7 {[%emt 0:00:44]} 36. Rf1 {[%emt 0:02:06]} Qc2 {[%emt 0:00:06]} 37. Kg1 {[%emt 0:01:00]} Qxc4 {[%emt 0:00:52]} 38. Qg5 {[%emt 0:00:10]} Nd3 {[%emt 0:01:26]} 39. Kg2 {[%emt 0:00:36]} Rf7 {[%emt 0:00:21]} 40. Qd8 {[%emt 0:00:00]} Qxd5 {[%emt 0:00:00]} 41. Qe8 {[%emt 0:02:57]} Ne5 {[%emt 0:03:02]} 42. Qd8 {[%emt 0:00:44]} Nc4 {[%emt 0:00:25]} 0-1

[Event "Cracovia Festival-A 2023"]
[Site "Krakow"]
[Date "2024.01.03"]
[Round "8.29"]
[White "Gorkiewicz, Mateusz"]
[Black "Sofronie, Iulian"]
[Result "1/2-1/2"]
[ECO "C29"]
[WhiteElo "2147"]
[BlackElo "2438"]
[Annotator "RC"]
[PlyCount "113"]
[EventDate "2023.12.24"]
[EventType "swiss"]
[EventCountry "POL"]
[SourceTitle "playchess.com"]
[Source "ChessBase"]
[SourceQuality "1"]
[TimeControl "40/5400+30:1800+30"]

1. e4 {[%emt 0:00:03]} e5 {[%emt 0:00:06]} 2. Nc3 {[%emt 0:00:12]} Nf6 {[%emt 0:00:05]} 3. f4 {[%emt 0:00:15]} d5 {[%emt 0:00:26]} 4. fxe5 {[%emt 0:00:11]} Nxe4 {[%emt 0:00:07]} 5. Qf3 {[%emt 0:00:12]} f5 {[%emt 0:01:53]} 6. d3 {[%emt 0:00:20]} Nxc3 {[%emt 0:00:25]} 7. bxc3 {[%emt 0:00:08]} d4 {[%emt 0:00:17]} 8. Qg3 {[%emt 0:00:33]} Nc6 {[%emt 0:01:34]} 9. Be2 {[%emt 0:00:17]} Be6 {[%emt 0:02:10]} 10. Bf3 {[%emt 0:00:28]} Qd7 {[%emt 0:11:15]} 11. c4 {[%emt 0:00:29]} g6 {[%emt 0:06:31]} 12. Ne2 {[%emt 0:03:26]} Nb4 {[%emt 0:02:50]} 13. O-O {[%emt 0:04:33]} c6 {[%emt 0:02:20]} 14. a3 {[%emt 0:37:14]} Nxc2 {[%emt 0:02:27]} 15. Ra2 {[%emt 0:00:49]} Ne3 {[%emt 0:00:06]} 16. Re1 {[%emt 0:01:10]} Bc5 {[%emt 0:00:44]} 17. Kh1 {[%emt 0:04:58]} O-O {[%emt 0:01:48]} 18. Nf4 {[%emt 0:04:56]} Kh8 {[%emt 0:01:47]} 19. Qh4 {[%emt 0:10:22]} Qf7 {[%emt 0:04:45]} 20. Rb2 {[%emt 0:13:29]} Rab8 {[%emt 0:00:58]} 21. Bxe3 {[%emt 0:05:39]} dxe3 {[%emt 0:02:14]} 22. Reb1 {[%emt 0:01:21]} Bb6 {[%emt 0:14:42]} 23. Qh6 {[%emt 0:06:00]} Bc8 {[%emt 0:01:58]} 24. Nxg6+ {[%emt 0:00:38]} Kg8 {[%emt 0:01:42]} 25. Nxf8 {[%emt 0:00:31]} Qxf8 {[%emt 0:00:04]} 26. Qxf8+ {[%emt 0:02:22]} Kxf8 {[%emt 0:00:06]} 27. g3 {[%emt 0:01:25]} Bd4 {[%emt 0:00:49]} 28. Rb3 {[%emt 0:00:56]} c5 {[%emt 0:00:22]} 29. Kg2 {[%emt 0:00:32]} b6 {[%emt 0:02:14]} 30. a4 {[%emt 0:00:55]} Bxe5 {[%emt 0:00:14]} 31. a5 {[%emt 0:00:11]} Bc7 {[%emt 0:03:27]} 32. axb6 {[%emt 0:00:07]} axb6 {[%emt 0:00:07]} 33. Bc6 {[%emt 0:00:47]} Ke7 {[%emt 0:01:09]} 34. Kf3 {[%emt 0:00:31]} Kd6 {[%emt 0:00:06]} 35. Bd5 {[%emt 0:00:12]} Bd7 {[%emt 0:00:13]} 36. Bf7 {[%emt 0:01:40]} Rf8 {[%emt 0:02:16]} 37. Bh5 {[%emt 0:00:03]} Rf6 {[%emt 0:01:00]} 38. Kxe3 {[%emt 0:00:39]} Ke5 {[%emt 0:00:31]} 39. Bf3 {[%emt 0:00:29]} Rh6 {[%emt 0:00:41]} 40. R1b2 {[%emt 0:00:00]} Bd8 {[%emt 0:00:00]} 41. h4 {[%emt 0:13:23]} Rg6 {[%emt 0:00:43]} 42. Rg2 {[%emt 0:00:42]} Rxg3 {[%emt 0:00:24]} 43. Rxg3 {[%emt 0:03:26]} f4+ {[%emt 0:00:05]} 44. Kf2 {[%emt 0:00:49]} Bxh4 {[%emt 0:00:06]} 45. Kg2 {[%emt 0:02:43]} Bxg3 {[%emt 0:00:20]} 46. Rxb6 {[%emt 0:02:58]} Bf5 {[%emt 0:01:05]} 47. Rc6 {[%emt 0:02:00]} Bxd3 {[%emt 0:00:47]} 48. Rxc5+ {[%emt 0:00:30]} Kd4 {[%emt 0:00:06]} 49. Rc7 {[%emt 0:01:17]} Bxc4 {[%emt 0:00:19]} 50. Rxh7 {[%emt 0:00:09]} Bd3 {[%emt 0:01:10]} 51. Rd7+ {[%emt 0:00:20]} Ke3 {[%emt 0:00:07]} 52. Re7+ {[%emt 0:00:09]} Kd2 {[%emt 0:01:45]} 53. Bc6 {[%emt 0:00:28]} Be2 {[%emt 0:00:12]} 54. Re8 {[%emt 0:00:53]} Bg4 {[%emt 0:00:27]} 55. Bb7 {[%emt 0:01:05]} Bh5 {[%emt 0:01:16]} 56. Re7 {[%emt 0:00:36]} Bg4 {[%emt 0:00:23]} 57. Bc6 {[%emt 0:00:51]} 1/2-1/2

[Event "Cracovia Festival-A 2023"]
[Site "Krakow"]
[Date "2024.01.03"]
[Round "8.30"]
[White "Zdybel, Przemyslaw"]
[Black "Baum, Jonasz"]
[Result "0-1"]
[ECO "C78"]
[WhiteElo "2180"]
[BlackElo "2421"]
[Annotator "RC"]
[PlyCount "56"]
[EventDate "2023.12.24"]
[EventType "swiss"]
[EventCountry "POL"]
[SourceTitle "playchess.com"]
[Source "ChessBase"]
[SourceQuality "1"]
[TimeControl "40/5400+30:1800+30"]

1. e4 {[%emt 0:00:04]} e5 {[%emt 0:00:02]} 2. Nf3 {[%emt 0:00:30]} Nc6 {[%emt 0:00:04]} 3. Bb5 {[%emt 0:00:06]} a6 {[%emt 0:00:04]} 4. Ba4 {[%emt 0:00:18]} Nf6 {[%emt 0:00:06]} 5. O-O {[%emt 0:01:57]} b5 {[%emt 0:00:19]} 6. Bb3 {[%emt 0:00:04]} Bc5 {[%emt 0:00:04]} 7. a4 {[%emt 0:04:59]} Rb8 {[%emt 0:00:22]} 8. axb5 {[%emt 0:02:24]} axb5 {[%emt 0:00:18]} 9. d3 {[%emt 0:01:45]} d6 {[%emt 0:01:59]} 10. c3 {[%emt 0:07:10]} O-O {[%emt 0:02:26]} 11. Bg5 {[%emt 0:01:39]} h6 {[%emt 0:00:17]} 12. Bh4 {[%emt 0:00:04]} g5 {[%emt 0:05:07]} 13. Bg3 {[%emt 0:00:02]} Kg7 {[%emt 0:13:18]} 14. d4 {[%emt 0:07:02]} Bb6 {[%emt 0:02:03]} 15. Bd5 {[%emt 0:12:40]} Nxd5 {[%emt 0:06:22]} 16. exd5 {[%emt 0:00:33]} Ne7 {[%emt 0:07:04]} 17. dxe5 {[%emt 0:00:26]} dxe5 {[%emt 0:00:05]} 18. Bxe5+ {[%emt 0:07:45]} f6 {[%emt 0:00:17]} 19. Bd4 {[%emt 0:00:17]} Nxd5 {[%emt 0:04:38]} 20. Bxb6 {[%emt 0:11:50]} Rxb6 {[%emt 0:00:02]} 21. Ra8 {[%emt 0:00:07]} Qd7 {[%emt 0:05:24]} 22. Nd4 {[%emt 0:15:08]} Nf4 {[%emt 0:03:10]} 23. f3 {[%emt 0:03:59]} c5 {[%emt 0:01:15]} 24. Nb3 {[%emt 0:00:46]} Rd6 {[%emt 0:03:03]} 25. N1d2 {[%emt 0:01:33]} c4 {[%emt 0:18:10]} 26. Nd4 {[%emt 0:04:08]} Rxd4 {[%emt 0:00:11]} 27. cxd4 {[%emt 0:00:07]} Qxd4+ {[%emt 0:00:05]} 28. Kh1 {[%emt 0:00:07]} Bh3 {[%emt 0:00:26]} 0-1

[Event "Cracovia Festival-A 2023"]
[Site "Krakow"]
[Date "2024.01.03"]
[Round "8.31"]
[White "Loftgaard, Mikkel Vinh"]
[Black "Gkavardinas, Antonios"]
[Result "1/2-1/2"]
[ECO "B12"]
[WhiteElo "2322"]
[BlackElo "2141"]
[Annotator "RC"]
[PlyCount "206"]
[EventDate "2023.12.24"]
[EventType "swiss"]
[EventCountry "POL"]
[SourceTitle "playchess.com"]
[Source "ChessBase"]
[SourceQuality "1"]
[TimeControl "40/5400+30:1800+30"]

1. e4 {[%emt 0:00:02]} c6 {[%emt 0:00:05]} 2. d4 {[%emt 0:00:05]} d5 {[%emt 0:00:08]} 3. e5 {[%emt 0:00:30]} Bf5 {[%emt 0:00:12]} 4. Nd2 {[%emt 0:00:12]} e6 {[%emt 0:00:38]} 5. Nb3 {[%emt 0:00:06]} Nd7 {[%emt 0:00:15]} 6. Nf3 {[%emt 0:00:09]} Ne7 {[%emt 0:00:14]} 7. Be2 {[%emt 0:00:16]} Nc8 {[%emt 0:00:21]} 8. O-O {[%emt 0:00:50]} Be7 {[%emt 0:00:16]} 9. a4 {[%emt 0:00:08]} O-O {[%emt 0:00:56]} 10. a5 {[%emt 0:00:07]} a6 {[%emt 0:00:27]} 11. Be3 {[%emt 0:00:25]} Na7 {[%emt 0:02:34]} 12. Ne1 {[%emt 0:03:11]} Nb5 {[%emt 0:07:01]} 13. g4 {[%emt 0:06:46]} Bg6 {[%emt 0:00:10]} 14. f4 {[%emt 0:00:36]} f5 {[%emt 0:00:54]} 15. g5 {[%emt 0:03:58]} Rc8 {[%emt 0:05:16]} 16. Nd3 {[%emt 0:01:31]} Qc7 {[%emt 0:12:33]} 17. c3 {[%emt 0:07:55]} Rfd8 {[%emt 0:02:55]} 18. Bh5 {[%emt 0:02:41]} Bxh5 {[%emt 0:02:55]} 19. Qxh5 {[%emt 0:00:35]} Nf8 {[%emt 0:02:37]} 20. Rf3 {[%emt 0:02:21]} Qd7 {[%emt 0:03:09]} 21. Nbc5 {[%emt 0:01:49]} Bxc5 {[%emt 0:00:56]} 22. Nxc5 {[%emt 0:00:02]} Qe7 {[%emt 0:00:57]} 23. Kf2 {[%emt 0:00:38]} Rc7 {[%emt 0:02:16]} 24. Rg3 {[%emt 0:05:38]} Qf7 {[%emt 0:08:59]} 25. Qf3 {[%emt 0:04:07]} Qg6 {[%emt 0:02:28]} 26. Ke2 {[%emt 0:02:14]} Nd7 {[%emt 0:04:13]} 27. Nb3 {[%emt 0:07:20]} Kf7 {[%emt 0:03:05]} 28. h4 {[%emt 0:01:57]} Kg8 {[%emt 0:00:52]} 29. Bf2 {[%emt 0:00:45]} Rdc8 {[%emt 0:02:52]} 30. h5 {[%emt 0:00:53]} Qe8 {[%emt 0:00:08]} 31. g6 {[%emt 0:01:58]} h6 {[%emt 0:00:13]} 32. Kd3 {[%emt 0:01:30]} c5 {[%emt 0:05:45]} 33. Nxc5 {[%emt 0:02:08]} Nxc5+ {[%emt 0:01:24]} 34. dxc5 {[%emt 0:00:02]} Rxc5 {[%emt 0:01:05]} 35. Bxc5 {[%emt 0:02:33]} Rxc5 {[%emt 0:00:06]} 36. Kd2 {[%emt 0:05:05]} Rc4 {[%emt 0:07:35]} 37. b3 {[%emt 0:04:41]} Rc7 {[%emt 0:02:12]} 38. Qf2 {[%emt 0:03:24]} Qc6 {[%emt 0:04:29]} 39. Qb6 {[%emt 0:01:38]} Nxc3 {[%emt 0:01:06]} 40. Qxc6 {[%emt 0:00:00]} Ne4+ {[%emt 0:00:00]} 41. Kd1 {[%emt 0:03:13]} bxc6 {[%emt 0:05:40]} 42. Rg2 {[%emt 0:02:26]} Rb7 {[%emt 0:01:24]} 43. Rc2 {[%emt 0:02:48]} c5 {[%emt 0:01:19]} 44. Rac1 {[%emt 0:10:10]} Rb5 {[%emt 0:06:26]} 45. b4 {[%emt 0:10:11]} c4 {[%emt 0:00:31]} 46. Rxc4 {[%emt 0:00:12]} dxc4 {[%emt 0:00:10]} 47. Rxc4 {[%emt 0:00:04]} Rb8 {[%emt 0:00:37]} 48. Rc7 {[%emt 0:03:50]} Ng3 {[%emt 0:12:26]} 49. b5 {[%emt 0:01:46]} axb5 {[%emt 0:10:40]} 50. a6 {[%emt 0:00:19]} Ra8 {[%emt 0:00:58]} 51. a7 {[%emt 0:00:31]} Kf8 {[%emt 0:00:30]} 52. Rf7+ {[%emt 0:00:18]} Ke8 {[%emt 0:00:09]} 53. Rxg7 {[%emt 0:00:27]} Kf8 {[%emt 0:00:20]} 54. Rf7+ {[%emt 0:01:48]} Kg8 {[%emt 0:00:25]} 55. Kd2 {[%emt 0:08:23]} Nxh5 {[%emt 0:03:56]} 56. Ke3 {[%emt 0:02:14]} Ng7 {[%emt 0:00:40]} 57. Rb7 {[%emt 0:00:39]} Ne8 {[%emt 0:00:07]} 58. Kd4 {[%emt 0:01:17]} b4 {[%emt 0:05:03]} 59. Kc4 {[%emt 0:00:18]} h5 {[%emt 0:01:08]} 60. Kxb4 {[%emt 0:00:12]} h4 {[%emt 0:00:07]} 61. Kb5 {[%emt 0:00:52]} h3 {[%emt 0:00:35]} 62. Kb6 {[%emt 0:00:14]} h2 {[%emt 0:00:48]} 63. Rh7 {[%emt 0:00:08]} Nc7 {[%emt 0:00:27]} 64. Rxh2 {[%emt 0:01:49]} Nd5+ {[%emt 0:00:22]} 65. Kb7 {[%emt 0:00:05]} Rxa7+ {[%emt 0:00:05]} 66. Kxa7 {[%emt 0:00:03]} Nxf4 {[%emt 0:00:09]} 67. Kb6 {[%emt 0:01:44]} Nxg6 {[%emt 0:00:41]} 68. Kc6 {[%emt 0:02:17]} Nxe5+ {[%emt 0:00:49]} 69. Kd6 {[%emt 0:00:01]} Ng4 {[%emt 0:01:13]} 70. Re2 {[%emt 0:00:02]} Kf7 {[%emt 0:00:48]} 71. Rxe6 {[%emt 0:00:13]} f4 {[%emt 0:01:11]} 72. Re4 {[%emt 0:00:14]} Kg6 {[%emt 0:00:06]} 73. Rxf4 {[%emt 0:00:13]} Kg5 {[%emt 0:00:06]} 74. Rf8 {[%emt 0:00:20]} Nf6 {[%emt 0:00:38]} 75. Ke6 {[%emt 0:00:11]} Ng4 {[%emt 0:00:06]} 76. Ra8 {[%emt 0:00:27]} Ne3 {[%emt 0:00:25]} 77. Ra5+ {[%emt 0:00:14]} Kf4 {[%emt 0:00:19]} 78. Ra4+ {[%emt 0:00:54]} Kg5 {[%emt 0:00:17]} 79. Ke5 {[%emt 0:00:36]} Ng4+ {[%emt 0:00:12]} 80. Ke4 {[%emt 0:00:09]} Nf6+ {[%emt 0:00:13]} 81. Kf3 {[%emt 0:00:10]} Kf5 {[%emt 0:00:14]} 82. Ra5+ {[%emt 0:00:25]} Ke6 {[%emt 0:00:08]} 83. Ke3 {[%emt 0:00:17]} Nd5+ {[%emt 0:00:21]} 84. Kd4 {[%emt 0:00:08]} Nf6 {[%emt 0:00:06]} 85. Re5+ {[%emt 0:00:06]} Kd6 {[%emt 0:00:14]} 86. Re1 {[%emt 0:00:14]} Nd7 {[%emt 0:00:23]} 87. Rh1 {[%emt 0:00:11]} Ke6 {[%emt 0:00:14]} 88. Re1+ {[%emt 0:00:22]} Kd6 {[%emt 0:00:22]} 89. Re2 {[%emt 0:00:27]} Nf6 {[%emt 0:00:17]} 90. Ra2 {[%emt 0:00:14]} Ke6 {[%emt 0:00:13]} 91. Ra5 {[%emt 0:00:15]} Ng4 {[%emt 0:00:59]} 92. Ra6+ {[%emt 0:01:20]} Kf5 {[%emt 0:00:07]} 93. Ra1 {[%emt 0:00:34]} Nf6 {[%emt 0:00:49]} 94. Re1 {[%emt 0:00:07]} Ng4 {[%emt 0:00:11]} 95. Rf1+ {[%emt 0:00:08]} Ke6 {[%emt 0:00:09]} 96. Ra1 {[%emt 0:00:20]} Nf6 {[%emt 0:00:12]} 97. Ra6+ {[%emt 0:00:11]} Kf5 {[%emt 0:00:07]} 98. Ra5+ {[%emt 0:00:06]} Ke6 {[%emt 0:00:16]} 99. Re5+ {[%emt 0:00:02]} Kd6 {[%emt 0:00:13]} 100. Re1 {[%emt 0:00:13]} Nd7 {[%emt 0:00:16]} 101. Ke4 {[%emt 0:00:56]} Ke6 {[%emt 0:01:48]} 102. Ra1 {[%emt 0:00:48]} Nf6+ {[%emt 0:00:14]} 103. Kd4 {[%emt 0:00:09]} Kf5 {[%emt 0:00:13]} 1/2-1/2

[Event "Cracovia Festival-A 2023"]
[Site "Krakow"]
[Date "2024.01.03"]
[Round "8.32"]
[White "Berin, Artem"]
[Black "Warchol, Kamil"]
[Result "1-0"]
[ECO "E46"]
[WhiteElo "2321"]
[BlackElo "2108"]
[Annotator "RC"]
[PlyCount "153"]
[EventDate "2023.12.24"]
[EventType "swiss"]
[EventCountry "POL"]
[SourceTitle "playchess.com"]
[Source "ChessBase"]
[SourceQuality "1"]
[TimeControl "40/5400+30:1800+30"]

1. d4 {[%emt 0:01:50]} Nf6 {[%emt 0:00:12]} 2. c4 {[%emt 0:00:18]} e6 {[%emt 0:00:06]} 3. Nc3 {[%emt 0:00:04]} Bb4 {[%emt 0:00:08]} 4. e3 {[%emt 0:00:05]} O-O {[%emt 0:00:11]} 5. Bd2 {[%emt 0:00:07]} b6 {[%emt 0:00:32]} 6. Nf3 {[%emt 0:00:07]} Bb7 {[%emt 0:00:21]} 7. Bd3 {[%emt 0:00:11]} d5 {[%emt 0:00:28]} 8. cxd5 {[%emt 0:00:08]} exd5 {[%emt 0:00:16]} 9. Rc1 {[%emt 0:00:05]} a6 {[%emt 0:02:44]} 10. Ne5 {[%emt 0:00:43]} Nbd7 {[%emt 0:03:23]} 11. O-O {[%emt 0:00:44]} Nxe5 {[%emt 0:06:09]} 12. dxe5 {[%emt 0:00:07]} Bxc3 {[%emt 0:01:36]} 13. Bxc3 {[%emt 0:00:07]} Ne4 {[%emt 0:00:12]} 14. Be1 {[%emt 0:00:15]} Qe7 {[%emt 0:11:09]} 15. Qc2 {[%emt 0:10:38]} Qxe5 {[%emt 0:16:12]} 16. Qxc7 {[%emt 0:00:08]} Qxc7 {[%emt 0:02:09]} 17. Rxc7 {[%emt 0:00:07]} Nc5 {[%emt 0:01:17]} 18. Bb4 {[%emt 0:04:22]} Rfc8 {[%emt 0:01:27]} 19. Rxc8+ {[%emt 0:00:08]} Rxc8 {[%emt 0:00:24]} 20. Bf5 {[%emt 0:00:08]} Ne6 {[%emt 0:02:46]} 21. Bc3 {[%emt 0:02:22]} Rd8 {[%emt 0:05:59]} 22. Rd1 {[%emt 0:00:16]} Bc6 {[%emt 0:03:40]} 23. f3 {[%emt 0:02:07]} Bb7 {[%emt 0:02:01]} 24. Kf2 {[%emt 0:00:10]} h6 {[%emt 0:02:47]} 25. h4 {[%emt 0:00:14]} Kf8 {[%emt 0:00:32]} 26. h5 {[%emt 0:00:12]} Bc8 {[%emt 0:03:08]} 27. Bb4+ {[%emt 0:02:46]} Ke8 {[%emt 0:01:28]} 28. Bc2 {[%emt 0:01:22]} Bb7 {[%emt 0:03:38]} 29. Ba4+ {[%emt 0:02:43]} b5 {[%emt 0:00:48]} 30. Bb3 {[%emt 0:00:14]} Ba8 {[%emt 0:03:46]} 31. a4 {[%emt 0:10:12]} Bc6 {[%emt 0:03:22]} 32. axb5 {[%emt 0:04:46]} axb5 {[%emt 0:00:34]} 33. Ra1 {[%emt 0:01:22]} Ra8 {[%emt 0:02:31]} 34. Rxa8+ {[%emt 0:00:23]} Bxa8 {[%emt 0:00:03]} 35. Bc2 {[%emt 0:00:36]} Bb7 {[%emt 0:07:18]} 36. Bc3 {[%emt 0:00:51]} f6 {[%emt 0:01:53]} 37. Bf5 {[%emt 0:00:26]} Kf7 {[%emt 0:06:49]} 38. Bg6+ {[%emt 0:00:54]} Kg8 {[%emt 0:01:45]} 39. Be8 {[%emt 0:02:16]} Nc7 {[%emt 0:00:19]} 40. Bd7 {[%emt 0:00:00]} Kf7 {[%emt 0:00:00]} 41. Bb4 {[%emt 0:01:34]} d4 {[%emt 0:04:23]} 42. e4 {[%emt 0:02:21]} Ba6 {[%emt 0:02:16]} 43. Bd6 {[%emt 0:04:56]} Ne6 {[%emt 0:01:01]} 44. Bc6 {[%emt 0:00:19]} Nd8 {[%emt 0:00:44]} 45. Bd5+ {[%emt 0:00:16]} Ke8 {[%emt 0:00:17]} 46. Bc5 {[%emt 0:00:17]} Bc8 {[%emt 0:03:28]} 47. Bxd4 {[%emt 0:00:55]} Kd7 {[%emt 0:00:22]} 48. Ke2 {[%emt 0:00:32]} Ne6 {[%emt 0:00:13]} 49. Be3 {[%emt 0:00:49]} Kd6 {[%emt 0:00:33]} 50. Kd3 {[%emt 0:02:10]} f5 {[%emt 0:00:15]} 51. Kc3 {[%emt 0:02:38]} Bd7 {[%emt 0:00:57]} 52. Kb4 {[%emt 0:11:02]} Be8 {[%emt 0:02:14]} 53. Bb7 {[%emt 0:01:14]} f4 {[%emt 0:02:09]} 54. Bd2 {[%emt 0:00:20]} Bxh5 {[%emt 0:01:02]} 55. Kxb5 {[%emt 0:00:22]} g5 {[%emt 0:00:10]} 56. Bb4+ {[%emt 0:01:06]} Kd7 {[%emt 0:04:17]} 57. Bc6+ {[%emt 0:00:21]} Kc8 {[%emt 0:00:26]} 58. Kc4 {[%emt 0:08:26]} g4 {[%emt 0:05:46]} 59. fxg4 {[%emt 0:00:05]} Bxg4 {[%emt 0:00:05]} 60. Kd5 {[%emt 0:01:08]} Nd8 {[%emt 0:01:00]} 61. Be8 {[%emt 0:01:42]} f3 {[%emt 0:00:52]} 62. gxf3 {[%emt 0:00:06]} Bxf3 {[%emt 0:00:03]} 63. Bg6 {[%emt 0:00:41]} Kd7 {[%emt 0:02:38]} 64. Bf5+ {[%emt 0:01:09]} Ke8 {[%emt 0:00:31]} 65. Be1 {[%emt 0:00:25]} Bh5 {[%emt 0:02:21]} 66. b4 {[%emt 0:01:04]} Bf7+ {[%emt 0:01:16]} 67. Kd6 {[%emt 0:00:25]} Bc4 {[%emt 0:00:40]} 68. Kc7 {[%emt 0:01:24]} Nf7 {[%emt 0:01:33]} 69. Bd7+ {[%emt 0:03:09]} Kf8 {[%emt 0:00:44]} 70. b5 {[%emt 0:01:42]} Bd3 {[%emt 0:03:22]} 71. Bc6 {[%emt 0:02:00]} Ne5 {[%emt 0:00:58]} 72. Bb4+ {[%emt 0:00:06]} Kf7 {[%emt 0:00:26]} 73. Bd5+ {[%emt 0:00:06]} Kg6 {[%emt 0:00:10]} 74. b6 {[%emt 0:00:08]} Ba6 {[%emt 0:00:12]} 75. Bd6 {[%emt 0:00:33]} Kf6 {[%emt 0:00:55]} 76. Bxe5+ {[%emt 0:00:09]} Kxe5 {[%emt 0:00:04]} 77. Bc4 {[%emt 0:00:09]} 1-0

[Event "Cracovia Festival-A 2023"]
[Site "Krakow"]
[Date "2024.01.03"]
[Round "8.33"]
[White "Janeczko, Jakub"]
[Black "Kazantzoglou, Stefanos"]
[Result "1-0"]
[ECO "C28"]
[WhiteElo "2283"]
[BlackElo "2152"]
[Annotator "RC"]
[PlyCount "39"]
[EventDate "2023.12.24"]
[EventType "swiss"]
[EventCountry "POL"]
[SourceTitle "playchess.com"]
[Source "ChessBase"]
[SourceQuality "1"]
[TimeControl "40/5400+30:1800+30"]

1. e4 {[%emt 0:00:02]} e5 {[%emt 0:00:01]} 2. Nc3 {[%emt 0:00:07]} Nf6 {[%emt 0:00:03]} 3. Bc4 {[%emt 0:00:04]} Nc6 {[%emt 0:00:04]} 4. d3 {[%emt 0:00:05]} Na5 {[%emt 0:00:26]} 5. Qf3 {[%emt 0:00:36]} Bb4 {[%emt 0:03:09]} 6. Nge2 {[%emt 0:03:08]} Nxc4 {[%emt 0:02:57]} 7. dxc4 {[%emt 0:00:18]} O-O {[%emt 0:01:29]} 8. O-O {[%emt 0:08:02]} d6 {[%emt 0:14:44]} 9. Bg5 {[%emt 0:11:42]} Be6 {[%emt 0:06:22]} 10. Nd5 {[%emt 0:01:33]} Bxd5 {[%emt 0:00:50]} 11. cxd5 {[%emt 0:00:04]} h6 {[%emt 0:02:53]} 12. Bxf6 {[%emt 0:00:45]} Qxf6 {[%emt 0:00:06]} 13. Qxf6 {[%emt 0:00:08]} gxf6 {[%emt 0:00:05]} 14. Ng3 {[%emt 0:00:26]} Kh7 {[%emt 0:01:39]} 15. Rfd1 {[%emt 0:06:02]} Kg6 {[%emt 0:03:33]} 16. Nf5 {[%emt 0:04:16]} Rae8 {[%emt 0:02:46]} 17. Rd3 {[%emt 0:00:57]} Rg8 {[%emt 0:02:57]} 18. c3 {[%emt 0:05:37]} Bc5 {[%emt 0:00:11]} 19. Rh3 {[%emt 0:00:10]} h5 {[%emt 0:00:56]} 20. Rd1 {[%emt 0:00:38]} 1-0